fUST/lending_fUST_20250904
["ID","MTS","AMOUNT","RATE_DAILY","PERIOD"]
[383468319,1756948246349,-260.0,0.0001558,2]
[383468320,1756948246358,-480.0,0.00015616,2]
[383468321,1756948246368,-151.0,0.00015616,2]
[383468322,1756948246378,-151.0,0.00015616,2]
[383468323,1756948246387,-151.0,0.00015616,2]
[383468324,1756948246397,-151.0,0.00015616,2]
[383468325,1756948246407,-480.0,0.00015616,2]
[383468326,1756948246417,-151.0,0.00015616,2]
[383468327,1756948246429,-480.0,0.00015616,2]
[383468328,1756948246438,-1425.12,0.00015616,2]
[383468329,1756948246448,-569.43,0.00015616,2]
[383468330,1756948246459,-957.65,0.00015616,2]
[383468331,1756948246468,-963.27,0.00015616,2]
[383468332,1756948246478,-1376.41,0.00015616,2]
[383468333,1756948246487,-1154.61,0.00015616,2]
[383468334,1756948246497,-480.0,0.00015616,2]
[383468336,1756948246507,-480.0,0.00015616,2]
[383468338,1756948246516,-480.0,0.00015616,2]
[383468340,1756948246525,-823.76,0.00015616,2]
[383468342,1756948246535,-480.0,0.00015616,2]
[383468344,1756948246544,-480.0,0.00015616,2]
[383468346,1756948246554,-1858.18,0.00015616,2]
[383468348,1756948246564,-670.47,0.00015616,2]
[383468350,1756948246573,-602.06,0.00015616,2]
[383468352,1756948246582,-480.0,0.00015616,2]
[383468354,1756948246592,-616.19,0.00015616,2]
[383468356,1756948246601,-2565.22,0.00015616,2]
[383468358,1756948246611,-618.10830361,0.00015616,2]
[383468360,1756948246620,-958.76,0.00015616,2]
[383468362,1756948246629,-480.0,0.00015616,2]
[383468364,1756948246639,-480.0,0.00015616,2]
[383468365,1756948246648,-480.0,0.00015616,2]
[383468367,1756948246657,-2000.0,0.00015616,2]
[383468369,1756948246666,-1000.0,0.00015665,2]
[383468371,1756948246675,-500.0,0.00015696,2]
[383468373,1756948246685,-1233.02130901,0.00015735,2]
[383468376,1756948246695,-151.0,0.000158,2]
[383468378,1756948246705,-161.0,0.000158,4]
[383468379,1756948246715,-161.0,0.000158,4]
[383468381,1756948246725,-2785.69058037,0.00015812,2]
[383468383,1756948246734,-151.0,0.0001589,2]
[383468385,1756948246744,-151.0,0.0001589,2]
[383468387,1756948246753,-480.0,0.0001589,2]
[383468389,1756948246763,-223.864832,0.0001589,2]
[383468391,1756948246772,-480.0,0.0001589,2]
[383468393,1756948246782,-480.0,0.0001589,2]
[383468395,1756948246791,-1425.12,0.0001589,2]
[383468397,1756948246800,-569.43,0.0001589,2]
[383468399,1756948246809,-957.65,0.0001589,2]
[383468401,1756948246819,-963.27,0.0001589,2]
[383468403,1756948246828,-151.0,0.0001589,2]
[383468405,1756948246838,-151.0,0.0001589,2]
[383468407,1756948246847,-151.0,0.0001589,2]
[383468409,1756948246856,-1376.41,0.0001589,2]
[383468411,1756948246865,-1154.61,0.0001589,2]
[383468413,1756948246875,-480.0,0.0001589,2]
[383468416,1756948246895,-480.0,0.0001589,2]
[383468418,1756948246906,-572.4318,0.0001589,2]
[383468420,1756948246916,-823.76,0.0001589,2]
[383468422,1756948246925,-480.0,0.0001589,2]
[383468442,1756948247085,-480.0,0.0001589,2]
[383468444,1756948247095,-1858.18,0.0001589,2]
[383468446,1756948247105,-670.47,0.0001589,2]
[383468448,1756948247115,-602.06,0.0001589,2]
[383468450,1756948247124,-480.0,0.0001589,2]
[383468452,1756948247133,-616.19,0.0001589,2]
[383468454,1756948247143,-2565.22,0.0001589,2]
[383468456,1756948247153,-958.76,0.0001589,2]
[383468458,1756948247162,-480.0,0.0001589,2]
[383468460,1756948247171,-480.0,0.0001589,2]
[383468461,1756948247180,-480.0,0.0001589,2]
[383468463,1756948247189,-3564.647827,0.00015985,2]
[383468465,1756948247200,-15015.7438978,0.00015985,2]
[383468467,1756948247209,-151.0,0.00015985,2]
[383468469,1756948247219,-151.0,0.00015985,2]
[383468471,1756948247229,-151.0,0.00015985,2]
[383468473,1756948247239,-151.0,0.00015985,2]
[383468475,1756948247248,-3000.0,0.00016,2]
[383468477,1756948247257,-162.0,0.00016,4]
[383468479,1756948247267,-162.27360232,0.00016,4]
[383468481,1756948247276,-521.434516,0.00016,2]
[383468483,1756948247286,-521.434516,0.00016,2]
[383468485,1756948247295,-151.0,0.00016,2]
[383468487,1756948247304,-521.434516,0.00016,2]
[383468489,1756948247314,-521.434516,0.00016,2]
[383468491,1756948247323,-3000.0,0.0001601,2]
[383468493,1756948247333,-3000.0,0.0001602,2]
[383468495,1756948247342,-151.0,0.0001602,2]
[383468497,1756948247350,-151.0,0.0001602,2]
[383468499,1756948247359,-151.0,0.0001602,2]
[383468501,1756948247369,-3000.0,0.0001603,2]
[383468503,1756948247377,-3000.0,0.0001604,2]
[383468505,1756948247387,-3000.0,0.0001605,2]
[383468507,1756948247396,-3000.0,0.0001606,2]
[383468508,1756948247405,-151.0,0.0001606,2]
[383468510,1756948247415,-201.943006,0.0001606,2]
[383468512,1756948247424,-151.0,0.0001606,2]
[383468514,1756948247433,-151.0,0.0001606,2]
[383468516,1756948247443,-151.0,0.0001606,2]
[383468518,1756948247453,-3000.0,0.0001607,2]
[383468520,1756948247463,-3000.0,0.0001608,2]
[383468522,1756948247472,-3000.0,0.0001609,2]
[383468524,1756948247482,-882.79406995,0.0001609,2]
[383468526,1756948247492,-3000.0,0.000161,2]
[383468528,1756948247502,-151.0,0.000161,2]
[383468530,1756948247511,-3000.0,0.0001611,2]
[383468532,1756948247521,-168.0,0.00016116,2]
[383468534,1756948247530,-3000.0,0.0001612,2]
[383468536,1756948247539,-360.0,0.00016127,2]
[383468538,1756948247549,-3000.0,0.0001613,2]
[383468540,1756948247559,-3000.0,0.0001614,2]
[383468542,1756948247568,-3000.0,0.0001615,2]
[383468544,1756948247579,-3000.0,0.0001616,2]
[383468546,1756948247589,-151.0,0.00016164,2]
[383468548,1756948247599,-309.72,0.00016164,2]
[383468550,1756948247608,-480.0,0.00016164,2]
[383468552,1756948247617,-480.0,0.00016164,2]
[383468554,1756948247626,-1425.12,0.00016164,2]
[383468556,1756948247635,-569.43,0.00016164,2]
[383468558,1756948247644,-957.65,0.00016164,2]
[383468560,1756948247653,-963.27,0.00016164,2]
[383468562,1756948247662,-1376.41,0.00016164,2]
[383468564,1756948247672,-1154.61,0.00016164,2]
[383468566,1756948247681,-480.0,0.00016164,2]
[383468568,1756948247690,-480.0,0.00016164,2]
[383468570,1756948247700,-823.76,0.00016164,2]
[383468572,1756948247710,-480.0,0.00016164,2]
[383468574,1756948247720,-480.0,0.00016164,2]
[383468575,1756948247729,-1858.18,0.00016164,2]
[383468577,1756948247738,-670.47,0.00016164,2]
[383468579,1756948247748,-602.06,0.00016164,2]
[383468581,1756948247757,-480.0,0.00016164,2]
[383468583,1756948247766,-616.19,0.00016164,2]
[383468585,1756948247776,-2565.22,0.00016164,2]
[383468587,1756948247785,-958.76,0.00016164,2]
[383468589,1756948247794,-480.0,0.00016164,2]
[383468591,1756948247804,-480.0,0.00016164,2]
[383468593,1756948247813,-480.0,0.00016164,2]
[383468595,1756948247822,-1503.72103436,0.00016164,2]
[383468597,1756948247831,-3000.0,0.0001617,2]
[383468599,1756948247841,-151.0,0.0001617,2]
[383468601,1756948247851,-151.0,0.0001617,2]
[383468603,1756948247859,-295.013664,0.0001617,2]
[383468605,1756948247869,-168.0,0.00016176,2]
[383468607,1756948247878,-3000.0,0.0001618,2]
[383468610,1756948247890,-4177.939856,0.0001619,2]
[383468612,1756948247899,-587.0,0.00016216,2]
[383468613,1756948247909,-269.04018535,0.0001624,2]
[383468616,1756948247919,-151.0,0.0001624,2]
[383468617,1756948247929,-151.0,0.0001624,2]
[383468620,1756948247939,-151.0,0.0001624,2]
[383468621,1756948247949,-151.0,0.0001624,2]
[383468623,1756948247958,-151.0,0.0001624,2]
[383468625,1756948247969,-151.0,0.0001624,2]
[383468627,1756948247979,-151.0,0.0001624,2]
[383468629,1756948247988,-151.0,0.0001624,2]
[383468631,1756948247998,-151.0,0.0001624,2]
[383468633,1756948248009,-151.0,0.0001624,2]
[383468635,1756948248018,-151.0,0.0001624,2]
[383468637,1756948248028,-151.0,0.0001624,2]
[383468639,1756948248039,-500.0,0.00016438,2]
[383468641,1756948248048,-206.1636258,0.00016438,2]
[383468643,1756948248058,-500.0,0.00016438,2]
[383468645,1756948248068,-380.58848139,0.00016438,2]
[383468647,1756948248078,-500.0,0.00016438,2]
[383468649,1756948248089,-500.0,0.00016438,2]
[383468650,1756948248098,-500.0,0.00016438,2]
[383468652,1756948248108,-500.0,0.00016438,2]
[383468654,1756948248117,-500.0,0.00016438,2]
[383468656,1756948248127,-500.0,0.00016438,2]
[383468658,1756948248137,-500.0,0.00016438,2]
[383468660,1756948248147,-150.0,0.00016438,2]
[383468662,1756948248157,-500.0,0.00016438,2]
[383468664,1756948248167,-500.0,0.00016438,2]
[383468666,1756948248175,-500.0,0.00016438,2]
[383468668,1756948248185,-478.59,0.00016438,2]
[383468670,1756948248194,-151.0,0.00016438,2]
[383468672,1756948248204,-277.301472,0.00016438,2]
[383468674,1756948248214,-480.0,0.00016438,2]
[383468676,1756948248224,-151.0,0.00016438,2]
[383468679,1756948248239,-480.0,0.00016438,2]
[383468681,1756948248254,-1425.12,0.00016438,2]
[383468684,1756948248268,-569.43,0.00016438,2]
[383468686,1756948248283,-957.65,0.00016438,2]
[383468688,1756948248295,-963.27,0.00016438,2]
[383468690,1756948248306,-1376.41,0.00016438,2]
[383468693,1756948248320,-1154.61,0.00016438,2]
[383468695,1756948248333,-480.0,0.00016438,2]
[383468698,1756948248347,-480.0,0.00016438,2]
[383468700,1756948248359,-823.76,0.00016438,2]
[383468702,1756948248372,-480.0,0.00016438,2]
[383468705,1756948248384,-480.0,0.00016438,2]
[383468706,1756948248397,-1858.18,0.00016438,2]
[383468707,1756948248411,-670.47,0.00016438,2]
[383468708,1756948248423,-602.06,0.00016438,2]
[383468709,1756948248436,-480.0,0.00016438,2]
[383468710,1756948248448,-616.19,0.00016438,2]
[383468711,1756948248460,-2565.22,0.00016438,2]
[383468712,1756948248472,-958.76,0.00016438,2]
[383468713,1756948248484,-480.0,0.00016438,2]
[383468714,1756948248497,-480.0,0.00016438,2]
[383468715,1756948248508,-480.0,0.00016438,2]
[383468716,1756948248520,-500.0,0.00016438,2]
[383468717,1756948248530,-168.0,0.00016479,2]
[383468718,1756948248540,-151.0,0.00016514,2]
[383468719,1756948248552,-151.0,0.00016514,2]
[383468720,1756948248563,-198.0,0.00016514,2]
[383468721,1756948248576,-864.0,0.00016658,2]
[383468722,1756948248587,-460.0,0.00016675,2]
[383468723,1756948248600,-480.0,0.00016712,2]
[383468724,1756948248612,-480.0,0.00016712,2]
[383468725,1756948248625,-1425.12,0.00016712,2]
[383468726,1756948248639,-569.43,0.00016712,2]
[383468727,1756948248652,-957.65,0.00016712,2]
[383468728,1756948248665,-963.27,0.00016712,2]
[383468729,1756948248675,-1376.41,0.00016712,2]
[383468730,1756948248685,-1154.61,0.00016712,2]
[383468731,1756948248695,-480.0,0.00016712,2]
[383468732,1756948248706,-480.0,0.00016712,2]
[383468733,1756948248717,-823.76,0.00016712,2]
[383468734,1756948248731,-385.98004558,0.00016712,2]
[383468735,1756948248743,-480.0,0.00016712,2]
[383468737,1756948248755,-1858.18,0.00016712,2]
[383468739,1756948248766,-670.47,0.00016712,2]
[383468741,1756948248777,-602.06,0.00016712,2]
[383468743,1756948248789,-480.0,0.00016712,2]
[383468746,1756948248802,-616.19,0.00016712,2]
[383468748,1756948248814,-2565.22,0.00016712,2]
[383468750,1756948248824,-958.76,0.00016712,2]
[383468752,1756948248836,-480.0,0.00016712,2]
[383468754,1756948248846,-480.0,0.00016712,2]
[383468757,1756948248859,-480.0,0.00016712,2]
[383468759,1756948248870,-151.0,0.00016985,2]
[383468760,1756948248880,-544.01026692,0.00016986,2]
[383468762,1756948248893,-480.0,0.00016986,2]
[383468765,1756948248904,-1425.12,0.00016986,2]
[383468767,1756948248916,-569.43,0.00016986,2]
[383468769,1756948248927,-957.65,0.00016986,2]
[383468771,1756948248938,-963.27,0.00016986,2]
[383468773,1756948248949,-1376.41,0.00016986,2]
[383468775,1756948248961,-1154.61,0.00016986,2]
[383468777,1756948248972,-480.0,0.00016986,2]
[383468779,1756948248984,-480.0,0.00016986,2]
[383468781,1756948248996,-823.76,0.00016986,2]
[383468784,1756948249008,-480.0,0.00016986,2]
[383468786,1756948249021,-1858.18,0.00016986,2]
[383468788,1756948249035,-670.47,0.00016986,2]
[383468790,1756948249049,-602.06,0.00016986,2]
[383468792,1756948249061,-480.0,0.00016986,2]
[383468795,1756948249073,-600.51627732,0.00016986,2]
[383468830,1756948249408,-480.0,0.00013972,2]
[383468832,1756948249420,-781.953138,0.00013972,2]
[383468834,1756948249432,-781.953138,0.0001399,2]
[383468837,1756948249444,-480.0,0.00014246,2]
[383468839,1756948249455,-480.0,0.0001452,2]
[383468841,1756948249466,-781.953138,0.000146,2]
[383468857,1756948249606,-480.0,0.00014794,2]
[383468860,1756948249626,-480.0,0.00015068,2]
[383468862,1756948249637,-480.0,0.00015342,2]
[383468864,1756948249646,-781.953138,0.00015342,2]
[383468866,1756948249655,-480.0,0.00015616,2]
[383468868,1756948249664,-480.0,0.0001589,2]
[383468870,1756948249673,-480.0,0.00016164,2]
[383468872,1756948249682,-480.0,0.00016438,2]
[383468874,1756948249692,-15.67372268,0.00016986,2]
[383468875,1756948249701,-2565.22,0.00016986,2]
[383468877,1756948249711,-958.76,0.00016986,2]
[383468879,1756948249720,-375.4916445,0.00016986,2]
[383468881,1756948249729,-480.0,0.00016986,2]
[383468883,1756948249738,-480.0,0.00016986,2]
[383468885,1756948249747,-560.0,0.00017223,2]
[383468887,1756948249756,-480.0,0.0001726,2]
[383468889,1756948249766,-1425.12,0.0001726,2]
[383468891,1756948249775,-569.43,0.0001726,2]
[383468893,1756948249784,-963.27,0.0001726,2]
[383468895,1756948249794,-21.60991731,0.0001726,2]
[383468898,1756948249806,-1354.80008269,0.0001726,2]
[383468900,1756948249815,-242.79911402,0.0001726,2]
[383468902,1756948249826,-874.95517256,0.0001726,2]
[383468946,1756948250243,-781.953138,0.00013972,2]
[383468948,1756948250253,-781.953138,0.00013972,2]
[383468950,1756948250262,-781.953138,0.00013972,2]
[383468952,1756948250271,-781.953138,0.0001399,2]
[383468954,1756948250280,-781.953138,0.0001399,2]
[383468956,1756948250289,-781.953138,0.0001399,2]
[383468958,1756948250298,-781.953138,0.000146,2]
[383468960,1756948250307,-63.67368844,0.000146,2]
[383468962,1756948250318,-397.65649073,0.000146,2]
[383470120,1756948292112,10000.01,0.00013,2]
[383470121,1756948292135,10000.01,0.00013,2]
[383470122,1756948292157,10000.01,0.00013,2]
[383470123,1756948292179,10000.01,0.00013,2]
[383470124,1756948292202,10000.01,0.00013,2]
[383470125,1756948292223,10000.01,0.00013,2]
[383470126,1756948292245,10000.01,0.00013,2]
[383470127,1756948292267,10000.01,0.00013,2]
[383470128,1756948292289,9941.92,0.00013,2]
[383470129,1756948295809,1000.0,0.00018595,20]
[383470130,1756948296298,1000.0,0.00020455,20]
[383470131,1756948296782,244.0,0.00020455,20]
[383470132,1756948297859,750.0,0.00027397,120]
[383470133,1756948308149,1000.0,0.00020155,20]
[383470134,1756948308649,244.0,0.00020155,20]
[383470135,1756948323087,58.09,0.00013096,2]
[383470136,1756948323110,555.30856,0.00013096,2]
[383470137,1756948325389,1000.0,0.00020155,20]
[383470138,1756948325871,244.0,0.00020155,20]
[383470142,1756948359594,1000.0,0.00020005,20]
[383470143,1756948360079,244.0,0.00020005,20]
[383470144,1756948395552,1000.0,0.00020005,20]
[383470145,1756948396033,244.0,0.00020005,20]
[383470146,1756948431725,1000.0,0.00020005,20]
[383470147,1756948432258,244.0,0.00020005,20]
[383470149,1756948469615,1000.0,0.00020005,20]
[383470150,1756948470089,244.0,0.00020005,20]
[383470151,1756948503098,9444.70144,0.00013,2]
[383470152,1756948503124,5052.93408225,0.00013,2]
[383470153,1756948504358,1000.0,0.00020005,20]
[383470154,1756948504864,244.0,0.00020005,20]
[383470155,1756948505312,3341.83638625,0.00013096,2]
[383470156,1756948511420,436.07,0.00012329,2]
[383470157,1756948522087,463.23,0.00012329,2]
[383470158,1756948529947,483.85082048,0.00013129,2]
[383470159,1756948532548,222.08871102,0.00012329,2]
[383470160,1756948532570,247.13128898,0.00012329,2]
[383470161,1756948540023,1000.0,0.00020005,20]
[383470162,1756948540523,244.0,0.00020005,20]
[383470163,1756948543019,391.02,0.00012329,2]
[383470164,1756948552375,483.85082048,0.00013129,2]
[383470165,1756948553659,325.85,0.00012329,2]
[383470166,1756948564155,271.54,0.00012329,2]
[383470167,1756948574593,226.28,0.00012329,2]
[383470168,1756948575315,483.85082048,0.00013129,2]
[383470169,1756948575900,1000.0,0.00020005,20]
[383470170,1756948576389,244.0,0.00020005,20]
[383470171,1756948585021,188.57,0.00012329,2]
[383470172,1756948595829,226.47,0.00012329,2]
[383470173,1756948598283,483.85082048,0.00013129,2]
[383470174,1756948606282,188.72,0.00012329,2]
[383470175,1756948608866,1000.0,0.00020005,20]
[383470176,1756948609361,244.0,0.00020005,20]
[383470177,1756948616778,157.27,0.00012329,2]
[383470178,1756948620780,483.85082048,0.00013129,2]
[383470179,1756948627248,346.1,0.00012329,2]
[383470180,1756948637723,288.42,0.00012329,2]
[383470181,1756948643066,1000.0,0.00020005,20]
[383470182,1756948643536,244.0,0.00020005,20]
[383470183,1756948643880,483.85082048,0.00013129,2]
[383470184,1756948648192,240.35,0.00012329,2]
[383470185,1756948658706,200.29,0.00012329,2]
[383470186,1756948666732,483.85082048,0.00013129,2]
[383470187,1756948669136,224.68,0.00012329,2]
[383470188,1756948678060,339.0,0.00020005,20]
[383470189,1756948679621,187.24,0.00012329,2]
[383470190,1756948689124,483.85082048,0.00013129,2]
[383470191,1756948690414,156.03,0.00012329,2]
[383470192,1756948700897,780.18,0.00012329,2]
[383470193,1756948714827,1966.91296766,0.00013098,2]
[383470194,1756948714849,353.19366426,0.00013098,2]
[383470195,1756948719718,150.0,0.00027397,120]
[383470196,1756948732086,346.65,0.00012329,2]
[383470197,1756948738199,2320.10663192,0.00013098,2]
[383470200,1756948752900,476.3,0.00012329,2]
[383470201,1756948761107,2320.10663192,0.00013098,2]
[383470202,1756948776021,203.92133502,0.00013162,2]
[383470203,1756948784020,2320.10663192,0.00013098,2]
[383470204,1756948803086,1659.62510496,0.00013,2]
[383470205,1756948803110,1386.81149621,0.00013,2]
[383470206,1756948807199,2320.10663192,0.00013098,2]
[383470207,1756948814842,204.33,0.00012329,2]
[383470208,1756948825295,170.28,0.00012329,2]
[383470209,1756948829974,2320.10663192,0.00013098,2]
[383470210,1756948836134,170.28,0.00012329,2]
[383470211,1756948847260,681.13,0.00012329,2]
[383470212,1756948853471,2320.10663192,0.00013098,2]
[383470213,1756948875781,426.85860803,0.00013098,2]
[383470214,1756948875804,1893.24802389,0.00013098,2]
[383470215,1756948883304,201.0095579,0.00012506,2]
[383470216,1756948884068,2320.10663192,0.00013098,2]
[383470217,1756948908540,183.85082048,0.00013098,2]
[383470218,1756948931908,183.85082048,0.00013098,2]
[383470219,1756948954384,183.85082048,0.00013098,2]
[383470220,1756948976689,183.85082048,0.00013098,2]
[383470221,1756948999038,183.85082048,0.00013098,2]
[383470222,1756949022656,183.85082048,0.00013098,2]
[383470223,1756949045248,183.85082048,0.00013098,2]
[383470224,1756949068332,183.85082048,0.00013098,2]
[383470230,1756949092057,600.0,0.00013129,2]
[383470233,1756949110292,3514.83922245,0.00012623,2]
[383470234,1756949110315,505.92443515,0.00012623,2]
[383470236,1756949114864,600.0,0.00013129,2]
[383470243,1756949137408,600.0,0.00013129,2]
[383470245,1756949159885,600.0,0.00013129,2]
[383470248,1756949183224,600.0,0.00013129,2]
[383470250,1756949206125,600.0,0.00013129,2]
[383470258,1756949228923,600.0,0.00013129,2]
[383470276,1756949252427,600.0,0.00013129,2]
[383470281,1756949277286,2087.0,0.00013129,2]
[383470286,1756949299922,2087.0,0.00013129,2]
[383470287,1756949319811,1056.99999999,0.00029759,120]
[383470288,1756949323003,1120.08556485,0.00013129,2]
[383470289,1756949323028,966.91443515,0.00013129,2]
[383470291,1756949346213,2087.0,0.00013129,2]
[383470292,1756949370231,2078.09708706,0.00013129,2]
[383470293,1756949406246,684.82,0.00013194,2]
[383470334,1756949431918,-520.53481035,0.00013262,2]
[383470339,1756949432012,-1566.46518965,0.00013262,2]
[383470341,1756949432022,-2561.55661832,0.00013364,2]
[383470343,1756949432031,-300.0,0.00013395,2]
[383470345,1756949432041,-300.0,0.00013395,2]
[383470348,1756949432050,-287.0,0.00013396,2]
[383470349,1756949432061,-560.68000968,0.00013396,2]
[383470350,1756949432070,-1200.0,0.00013396,2]
[383470351,1756949432080,-500.0,0.00013397,2]
[383470352,1756949432089,-433.12860187,0.00013397,2]
[383470353,1756949432099,-500.0,0.00013397,2]
[383470354,1756949432108,-500.0,0.00013397,2]
[383470355,1756949432117,-500.0,0.00013397,2]
[383470356,1756949432126,-500.0,0.00013397,2]
[383470357,1756949432135,-500.0,0.00013397,2]
[383470358,1756949432145,-500.0,0.00013397,2]
[383470359,1756949432154,-500.0,0.00013397,2]
[383470360,1756949432163,-217.98515823,0.00013397,2]
[383470361,1756949432173,-500.88672507,0.00013397,2]
[383470362,1756949432184,-191.93613823,0.00013397,2]
[383470363,1756949432194,-500.0,0.00013397,2]
[383470364,1756949432203,-500.0,0.00013397,2]
[383470365,1756949432212,-407.22699692,0.00013397,2]
[383470366,1756949432222,-303.39089175,0.00013397,2]
[383470367,1756949432235,-500.0,0.00013397,2]
[383470368,1756949432245,-548.07080466,0.00013397,2]
[383470369,1756949432255,-629.11352417,0.00013397,2]
[383470370,1756949432264,-496.70473408,0.00013397,2]
[383470371,1756949432275,-67884.27420031,0.00013398,2]
[383470372,1756949432287,-704.05103723,0.00013398,2]
[383470376,1756949437930,-1490.27093612,0.00013398,2]
[383470377,1756949437942,-299921.40382634,0.00013398,2]
[383470378,1756949437954,-2782.80822663,0.00013496,2]
[383470379,1756949437964,-1000.0,0.000136,2]
[383470380,1756949437973,-1000.0,0.000136,3]
[383470381,1756949437983,-600.0,0.00013664,2]
[383470382,1756949437993,-480.0,0.00013698,2]
[383470383,1756949438002,-480.0,0.00013698,2]
[383470384,1756949438012,-480.0,0.00013698,2]
[383470385,1756949438022,-480.0,0.00013698,2]
[383470386,1756949438031,-480.0,0.00013698,2]
[383470387,1756949438040,-480.0,0.00013698,2]
[383470388,1756949438050,-364.04431813,0.00013698,2]
[383470389,1756949438059,-480.0,0.00013698,2]
[383470390,1756949438069,-480.0,0.00013698,2]
[383470391,1756949438078,-199.83439183,0.00013698,2]
[383470392,1756949438089,-464.0,0.00013698,2]
[383470393,1756949438098,-480.0,0.00013698,2]
[383470394,1756949438108,-521.97,0.00013698,2]
[383470395,1756949438117,-1204.36,0.00013698,2]
[383470396,1756949438127,-411.53263135,0.00013698,2]
[383470397,1756949438137,-480.0,0.00013698,2]
[383470398,1756949438147,-480.0,0.00013698,2]
[383470399,1756949438156,-1306.36,0.00013698,2]
[383470400,1756949438166,-1059.93,0.00013698,2]
[383470401,1756949438175,-882.99,0.00013698,2]
[383470402,1756949438185,-480.0,0.00013698,2]
[383470403,1756949438194,-480.0,0.00013698,2]
[383470404,1756949438203,-480.0,0.00013698,2]
[383470405,1756949438213,-480.0,0.00013698,2]
[383470406,1756949438222,-480.0,0.00013698,2]
[383470407,1756949438232,-480.0,0.00013698,2]
[383470408,1756949438244,-789.43,0.00013698,2]
[383470409,1756949438254,-480.0,0.00013698,2]
[383470410,1756949438264,-642.53,0.00013698,2]
[383470411,1756949438274,-1780.76,0.00013698,2]
[383470412,1756949438284,-480.0,0.00013698,2]
[383470413,1756949438294,-288.7,0.00013698,2]
[383470414,1756949438303,-480.0,0.00013698,2]
[383470415,1756949438313,-576.98,0.00013698,2]
[383470416,1756949438323,-589.86,0.00013698,2]
[383470417,1756949438332,-324.19,0.00013698,2]
[383470418,1756949438341,-486.48,0.00013698,2]
[383470419,1756949438351,-2351.46,0.00013698,2]
[383470420,1756949438361,-480.0,0.00013698,2]
[383470421,1756949438371,-480.0,0.00013698,2]
[383470422,1756949438380,-480.0,0.00013698,2]
[383470423,1756949438389,-480.0,0.00013698,2]
[383470424,1756949438398,-895.44,0.00013698,2]
[383470425,1756949438407,-480.0,0.00013698,2]
[383470426,1756949438417,-214.15459722,0.00013698,2]
[383470427,1756949438426,-924.14,0.00013698,2]
[383470428,1756949438436,-480.0,0.00013698,2]
[383470429,1756949438445,-500.0,0.00013698,2]
[383470430,1756949438454,-282.223957,0.00013699,2]
[383470431,1756949438464,-783.836989,0.00013699,2]
[383470432,1756949438474,-1671.60745609,0.00013859,2]
[383470433,1756949438484,-480.0,0.00013972,2]
[383470434,1756949438494,-480.0,0.00013972,2]
[383470435,1756949438504,-480.0,0.00013972,2]
[383470436,1756949438514,-480.0,0.00013972,2]
[383470437,1756949438524,-480.0,0.00013972,2]
[383470438,1756949438536,-521.97,0.00013972,2]
[383470439,1756949438546,-1204.36,0.00013972,2]
[383470440,1756949438555,-480.0,0.00013972,2]